[Event "ESTCC-50 2025"]
[Site "Swidnica"]
[Date "2025.04.11"]
[Round "7.12"]
[White "Hughes, Anthony"]
[Black "Dishman, Stephen"]
[Result "0-1"]
[Annotator "ChessBase"]
[ECO "A21"]
[WhiteElo "1911"]
[BlackElo "2279"]
[PlyCount "75"]
[EventDate "2025.04.05"]
[EventType "team-tourn"]
[EventCountry "POL"]
[SourceTitle "playchess.com"]
[Source "ChessBase"]
[SourceQuality "1"]
[WhiteTeam "Wales"]
[BlackTeam "England"]
[WhiteTeamCountry "WLS"]
[BlackTeamCountry "ENG"]
[TimeControl "40/5400+30:1800+30"]

1. c4 {[%emt 0:00:05]} e5 {[%emt 0:00:13]} 2. Nc3 {[%emt 0:00:09]} Bb4 {[%emt 0:00:12]} 3. e4 {[%emt 0:00:23]} d6 {[%emt 0:00:44]} 4. Nge2 {[%emt 0:00:30]} Nc6 {[%emt 0:00:45]} 5. Nd5 {[%emt 0:21:02]} Bc5 {[%emt 0:00:40]} 6. d3 {[%emt 0:01:20]} Nge7 {[%emt 0:04:49]} 7. Be3 {[%emt 0:11:24]} O-O {[%emt 0:00:50]} 8. Qd2 {[%emt 0:16:55]} f5 {[%emt 0:12:25]} 9. f3 {[%emt 0:11:57]} f4 {[%emt 0:03:19]} 10. Bxc5 {[%emt 0:00:13]} dxc5 {[%emt 0:00:05]} 11. Rg1 {[%emt 0:08:01]} Ng6 {[%emt 0:01:56]} 12. g3 {[%emt 0:01:11]} fxg3 {[%emt 0:04:54]} 13. Rxg3 {[%emt 0:00:13]} Nd4 {[%emt 0:01:01]} 14. Bg2 {[%emt 0:08:09]} Nxe2 {[%emt 0:01:16]} 15. Qxe2 {[%emt 0:01:09]} c6 {[%emt 0:00:04]} 16. Nc3 {[%emt 0:02:38]} Nf4 {[%emt 0:00:05]} 17. Qd2 {[%emt 0:03:21]} Qxd3 {[%emt 0:04:14]} 18. O-O-O {[%emt 0:00:25]} Qxd2+ {[%emt 0:04:22]} 19. Rxd2 {[%emt 0:00:01]} Be6 {[%emt 0:00:20]} 20. Nd1 {[%emt 0:06:00]} Bxc4 {[%emt 0:03:11]} 21. Ne3 {[%emt 0:01:08]} Ne2+ {[%emt 0:00:54]} 22. Rxe2 {[%emt 0:00:21]} Bxe2 {[%emt 0:00:04]} 23. Nf5 {[%emt 0:00:12]} g6 {[%emt 0:00:49]} 24. Kd2 {[%emt 0:00:26]} Ba6 {[%emt 0:00:48]} 25. h4 {[%emt 0:03:17]} Rad8+ {[%emt 0:00:13]} 26. Kc2 {[%emt 0:00:32]} Rxf5 {[%emt 0:03:11]} 27. exf5 {[%emt 0:00:07]} Bd3+ {[%emt 0:00:03]} 28. Kc3 {[%emt 0:00:09]} Bxf5 {[%emt 0:00:07]} 29. h5 {[%emt 0:00:14]} Rd3+ {[%emt 0:00:36]} 30. Kc4 {[%emt 0:00:10]} b6 {[%emt 0:01:18]} 31. hxg6 {[%emt 0:00:18]} hxg6 {[%emt 0:01:03]} 32. Bh3 {[%emt 0:00:12]} Rd4+ {[%emt 0:00:41]} 33. Kc3 {[%emt 0:00:09]} Kf7 {[%emt 0:00:16]} 34. Bf1 {[%emt 0:00:16]} b5 35. a3 {[%emt 0:00:32]} a5 {[%emt 0:02:06]} 36. Be2 {[%emt 0:00:43]} a4 {[%emt 0:00:34]} 37. Rg1 {[%emt 0:00:21]} b4+ {[%emt 0:00:10]} 38. axb4 {[%emt 0:00:24]} 0-1

[Event "ESTCC-50 2025"]
[Site "Swidnica"]
[Date "2025.04.11"]
[Round "7.13"]
[White "Rogowski, Jaroslaw"]
[Black "Buckley, Graeme N"]
[Result "0-1"]
[Annotator "ChessBase"]
[ECO "A57"]
[WhiteElo "2050"]
[BlackElo "2268"]
[PlyCount "66"]
[EventDate "2025.04.05"]
[EventType "team-tourn"]
[EventCountry "POL"]
[SourceTitle "playchess.com"]
[Source "ChessBase"]
[SourceQuality "1"]
[WhiteTeam "Poland"]
[BlackTeam "England"]
[WhiteTeamCountry "POL"]
[BlackTeamCountry "ENG"]
[TimeControl "40/5400+30:1800+30"]

1. d4 {[%emt 0:00:29]} Nf6 {[%emt 0:00:07]} 2. c4 {[%emt 0:00:08]} c5 {[%emt 0:00:11]} 3. d5 {[%emt 0:00:37]} b5 {[%emt 0:00:05]} 4. e3 {[%emt 0:17:25]} e6 {[%emt 0:13:10]} 5. dxe6 {[%emt 0:02:28]} fxe6 {[%emt 0:00:04]} 6. cxb5 {[%emt 0:00:08]} d5 {[%emt 0:01:43]} 7. Nf3 {[%emt 0:01:31]} Bd6 {[%emt 0:00:44]} 8. Nbd2 {[%emt 0:05:32]} Bb7 {[%emt 0:05:23]} 9. b3 {[%emt 0:13:31]} Nbd7 {[%emt 0:00:31]} 10. Bb2 {[%emt 0:01:06]} O-O {[%emt 0:00:17]} 11. Qc2 {[%emt 0:10:04]} Kh8 {[%emt 0:03:43]} 12. Be2 {[%emt 0:11:01]} Rc8 {[%emt 0:20:44]} 13. O-O-O {[%emt 0:12:05]} c4 {[%emt 0:08:30]} 14. bxc4 {[%emt 0:00:40]} a6 {[%emt 0:00:03]} 15. Nd4 {[%emt 0:07:56]} Nc5 {[%emt 0:06:26]} 16. Kb1 {[%emt 0:03:33]} e5 {[%emt 0:11:56]} 17. Nf5 {[%emt 0:02:34]} Bb8 {[%emt 0:00:32]} 18. bxa6 {[%emt 0:03:52]} Bxa6 {[%emt 0:02:06]} 19. g4 {[%emt 0:00:38]} Qe8 {[%emt 0:03:04]} 20. f3 {[%emt 0:01:19]} Na4 {[%emt 0:02:44]} 21. Ba3 {[%emt 0:00:48]} Rf7 {[%emt 0:00:14]} 22. e4 {[%emt 0:02:35]} d4 {[%emt 0:05:59]} 23. Ka1 {[%emt 0:00:53]} Nc3 {[%emt 0:00:42]} 24. Rde1 {[%emt 0:00:24]} Ra7 {[%emt 0:01:05]} 25. Bb2 {[%emt 0:00:55]} Nxa2 {[%emt 0:05:23]} 26. Kb1 {[%emt 0:00:01]} Bb5 {[%emt 0:01:45]} 27. Qb3 {[%emt 0:01:04]} Ba4 {[%emt 0:00:39]} 28. Qb6 {[%emt 0:00:23]} Rc6 {[%emt 0:01:11]} 29. Qxa7 Bxa7 {[%emt 0:00:14]} 30. Kxa2 {[%emt 0:00:13]} Bc2 {[%emt 0:01:16]} 31. Ba3 {[%emt 0:01:36]} Ra6 {[%emt 0:00:37]} 32. Ra1 {[%emt 0:00:29]} d3 {[%emt 0:01:52]} 33. Bd1 {[%emt 0:00:31]} Qa4 {[%emt 0:01:19]} 0-1

[Event "ESTCC-50 2025"]
[Site "Swidnica"]
[Date "2025.04.11"]
[Round "7.14"]
[White "Duncan, Chris R"]
[Black "Ograbek, Grzegorz"]
[Result "1/2-1/2"]
[Annotator "ChessBase"]
[ECO "E94"]
[WhiteElo "2178"]
[BlackElo "2068"]
[PlyCount "36"]
[EventDate "2025.04.05"]
[EventType "team-tourn"]
[EventCountry "POL"]
[SourceTitle "playchess.com"]
[Source "ChessBase"]
[SourceQuality "1"]
[WhiteTeam "England"]
[BlackTeam "Poland"]
[WhiteTeamCountry "ENG"]
[BlackTeamCountry "POL"]
[TimeControl "40/5400+30:1800+30"]

1. Nf3 {[%emt 0:00:04]} d6 {[%emt 0:00:26]} 2. c4 {[%emt 0:00:07]} g6 {[%emt 0:00:21]} 3. d4 {[%emt 0:00:45]} Bg7 {[%emt 0:00:09]} 4. Nc3 {[%emt 0:00:06]} Nf6 {[%emt 0:00:47]} 5. e4 {[%emt 0:00:19]} O-O {[%emt 0:00:23]} 6. Be2 {[%emt 0:00:04]} e5 {[%emt 0:00:23]} 7. O-O {[%emt 0:00:26]} exd4 {[%emt 0:01:30]} 8. Nxd4 {[%emt 0:00:13]} Re8 {[%emt 0:00:16]} 9. f3 {[%emt 0:00:39]} c6 {[%emt 0:00:29]} 10. Kh1 {[%emt 0:00:45]} Nbd7 {[%emt 0:01:13]} 11. Bg5 {[%emt 0:02:04]} Qb6 {[%emt 0:01:04]} 12. Na4 {[%emt 0:01:51]} Qa5 {[%emt 0:04:29]} 13. Bd2 {[%emt 0:01:12]} Qd8 {[%emt 0:00:10]} 14. Bc3 {[%emt 0:01:20]} Ne5 {[%emt 0:38:35]} 15. b3 {[%emt 0:07:50]} h5 {[%emt 0:03:34]} 16. Nb2 {[%emt 0:22:03]} d5 {[%emt 0:04:01]} 17. exd5 {[%emt 0:02:17]} cxd5 {[%emt 0:01:09]} 18. Nd3 {[%emt 0:02:38]} Nxd3 {[%emt 0:08:04]} 1/2-1/2

[Event "ESTCC-50 2025"]
[Site "Swidnica"]
[Date "2025.04.11"]
[Round "7.15"]
[White "Czyz, Andrzej"]
[Black "Crocker, Philip J"]
[Result "0-1"]
[Annotator "NA"]
[ECO "C77"]
[WhiteElo "1985"]
[BlackElo "2137"]
[PlyCount "56"]
[EventDate "2025.04.05"]
[EventType "team-tourn"]
[EventCountry "POL"]
[SourceTitle "playchess.com"]
[Source "ChessBase"]
[SourceQuality "1"]
[WhiteTeam "Poland"]
[BlackTeam "England"]
[WhiteTeamCountry "POL"]
[BlackTeamCountry "ENG"]
[TimeControl "40/5400+30:1800+30"]

1. e4 {[%emt 0:00:03]} e5 {[%emt 0:00:32]} 2. Nf3 {[%emt 0:00:13]} Nc6 {[%emt 0:00:06]} 3. Bb5 {[%emt 0:00:11]} a6 {[%emt 0:00:15]} 4. Ba4 {[%emt 0:00:38]} Nf6 {[%emt 0:00:14]} 5. d3 {[%emt 0:00:13]} d6 {[%emt 0:00:45]} 6. c4 {[%emt 0:00:38]} Bg4 {[%emt 0:01:06]} 7. h3 {[%emt 0:00:15]} Bxf3 {[%emt 0:00:47]} 8. Qxf3 {[%emt 0:00:04]} Nd7 {[%emt 0:01:22]} 9. Be3 {[%emt 0:01:26]} g6 {[%emt 0:01:48]} 10. O-O {[%emt 0:03:13]} Bg7 {[%emt 0:00:38]} 11. a3 {[%emt 0:02:23]} O-O {[%emt 0:00:53]} 12. Qe2 {[%emt 0:12:00]} f5 {[%emt 0:03:00]} 13. f3 {[%emt 0:07:04]} Nd4 {[%emt 0:02:14]} 14. Bxd4 {[%emt 0:05:51]} exd4 {[%emt 0:00:03]} 15. Nd2 {[%emt 0:01:08]} Nc5 {[%emt 0:04:53]} 16. Bc2 {[%emt 0:00:53]} Bh6 {[%emt 0:03:02]} 17. Rfe1 {[%emt 0:09:22]} Ne6 {[%emt 0:06:08]} 18. Rad1 {[%emt 0:07:49]} Be3+ {[%emt 0:07:34]} 19. Kh2 {[%emt 0:05:55]} Nf4 {[%emt 0:03:40]} 20. Qf1 {[%emt 0:01:09]} Qg5 {[%emt 0:02:21]} 21. g3 {[%emt 0:07:32]} Nh5 {[%emt 0:01:35]} 22. Qg2 {[%emt 0:04:51]} Nxg3 {[%emt 0:02:25]} 23. Nf1 {[%emt 0:03:05]} f4 {[%emt 0:06:07]} 24. Nxe3 {[%emt 0:06:26]} dxe3 {[%emt 0:00:30]} 25. Rxe3 {[%emt 0:00:35]} fxe3 {[%emt 0:01:01]} 26. Qxg3 {[%emt 0:00:04]} Qf6 {[%emt 0:02:04]} 27. Re1 {[%emt 0:02:55]} Qxf3 {[%emt 0:00:50]} 28. Rxe3 {[%emt 0:00:26]} Qf2+ {[%emt 0:00:47]} 0-1

[Event "ESTCC-50 2025"]
[Site "Swidnica"]
[Date "2025.04.11"]
[Round "7.16"]
[White "Noyce, Robert C"]
[Black "Wielosz, Jaroslaw"]
[Result "1/2-1/2"]
[Annotator "NA"]
[ECO "A25"]
[WhiteElo "2065"]
[BlackElo "1939"]
[PlyCount "35"]
[EventDate "2025.04.05"]
[EventType "team-tourn"]
[EventCountry "POL"]
[SourceTitle "playchess.com"]
[Source "ChessBase"]
[SourceQuality "1"]
[WhiteTeam "England"]
[BlackTeam "Poland"]
[WhiteTeamCountry "ENG"]
[BlackTeamCountry "POL"]
[TimeControl "40/5400+30:1800+30"]

1. c4 {[%emt 0:00:03]} e5 {[%emt 0:00:24]} 2. Nc3 {[%emt 0:00:12]} Nc6 {[%emt 0:01:21]} 3. g3 {[%emt 0:01:50]} Bc5 {[%emt 0:00:19]} 4. Bg2 {[%emt 0:01:04]} d6 {[%emt 0:00:08]} 5. e3 {[%emt 0:04:18]} h5 {[%emt 0:00:41]} 6. Nge2 {[%emt 0:03:41]} h4 {[%emt 0:05:02]} 7. d4 {[%emt 0:02:49]} Bb4 {[%emt 0:03:53]} 8. a3 {[%emt 0:02:34]} Bxc3+ {[%emt 0:00:42]} 9. Nxc3 {[%emt 0:01:18]} Nf6 {[%emt 0:10:30]} 10. d5 {[%emt 0:14:45]} Ne7 {[%emt 0:02:16]} 11. e4 {[%emt 0:10:18]} Bg4 {[%emt 0:05:20]} 12. Bf3 {[%emt 0:02:41]} Qd7 {[%emt 0:06:03]} 13. Bg5 {[%emt 0:02:44]} hxg3 {[%emt 0:06:56]} 14. fxg3 {[%emt 0:00:58]} Bh3 {[%emt 0:03:50]} 15. Qe2 {[%emt 0:04:47]} Ng4 {[%emt 0:07:19]} 16. O-O-O {[%emt 0:02:14]} f6 {[%emt 0:00:43]} 17. Bd2 {[%emt 0:00:57]} O-O-O {[%emt 0:01:24]} 18. Rde1 {[%emt 0:04:12]} 1/2-1/2